bitfinex/quotes_ETHUSD_20240915
["timestamp","ask_amount","ask_price","bid_price","bid_amount"]
[1726418879616,4.16614,2400.3,2399.8,2.353]
[1726418879905,8.3324,2400.3,2399.8,2.353]
[1726418880287,4.16614,2400.3,2399.8,2.353]
[1726418880609,8.3324,2400.3,2399.8,2.353]
[1726418880983,4.16614,2400.3,2399.8,2.353]
[1726418881197,4.16614,2400.3,2399.8,6.51998]
[1726418881395,4.16614,2400.3,2399.8,3.3968421]
[1726418881713,4.16614,2400.3,2399.8,7.5638221]
[1726418882778,4.16614,2400.3,2399.8,3.3968421]
[1726418883178,4.16614,2400.3,2399.8,2.103]
[1726418883382,4.1665,2400.1,2399.8,2.103]
[1726418884176,10.75434,2400.3,2399.8,2.103]
[1726418884379,10.75428,2400.3,2399.8,2.103]
[1726418884587,5.24568862,2400.2,2399.8,2.103]
[1726418885392,5.24568862,2400.2,2399.4,4.16767]
[1726418885393,4.16684,2399.9,2399.4,4.16767]
[1726418885621,4.16677,2400.0,2399.5,4.16751]
[1726418886179,4.16677,2400.0,2399.6,2.3653]
[1726418887492,8.33354,2400.0,2399.6,2.3653]
[1726418887693,4.16677,2400.0,2399.6,2.3653]
[1726418888314,8.33356,2400.0,2399.6,2.3653]
[1726418888529,4.16739,2399.6,2399.2,2.3988]
[1726418890122,4.16773,2399.4,2399.0,2.3988]
[1726418890321,2.703639,2399.5,2399.0,2.3988]
[1726418890517,4.16824,2399.1,2398.6,2.3988]
[1726418891331,4.16842,2399.0,2398.6,2.3988]
[1726418891833,3.0,2398.9,2398.6,2.3988]
[1726418892035,4.16886,2398.8,2398.6,2.3988]
[1726418892735,4.16886,2398.8,2398.2,2.4203]
[1726418893199,8.33773,2398.8,2398.2,2.4203]
[1726418893597,4.16892,2398.7,2398.2,2.4203]
[1726418894111,4.16886,2398.8,2398.2,2.4203]
[1726418894310,8.33773,2398.8,2398.2,2.4203]
[1726418894541,4.16886,2398.8,2398.2,6.59003]
[1726418894704,4.16886,2398.8,2398.2,8.234435]
[1726418895098,4.16886,2398.8,2398.2,12.152776]
[1726418897321,7.16867,2398.9,2398.3,4.16954]
[1726418897498,4.16849,2399.0,2398.4,10.508051]
[1726418897697,4.16849,2399.0,2398.5,0.08337566]
[1726418897898,12.45,2399.5,2398.8,8.086961]
[1726418897899,7.37,2399.4,2398.8,8.086961]
[1726418898156,7.37,2399.4,2399.2,2.4203]
[1726418898437,4.16738,2399.6,2399.2,2.4203]
[1726418899841,10.64216,2399.8,2399.2,2.4203]
[1726418900041,4.16711,2399.8,2399.2,7.663998]
[1726418900448,4.16711,2399.8,2399.4,2.4203]
[1726418900598,4.69137186,2400.0,2399.4,2.4203]
[1726418901904,3.0,2399.9,2399.4,2.4203]
[1726418902104,7.16685,2399.9,2399.4,2.4203]
[1726418902713,4.16704,2399.8,2399.4,2.4203]
[1726418902925,5.35288119,2399.8,2399.4,2.4203]
[1726418903242,5.35288119,2399.8,2399.0,2.4203]
[1726418903243,4.16752,2399.6,2399.0,2.4203]
[1726418904249,4.16752,2399.6,2399.0,6.58869]
[1726418904542,4.16752,2399.6,2399.1,2.4203]
[1726418909054,4.16703,2399.8,2399.1,10.506741]
[1726418909343,4.16728,2399.7,2399.1,11.165596]
[1726418909719,4.16703,2399.8,2399.2,4.16804]
[1726418909921,4.16703,2399.8,2399.4,2.4276]
[1726418910123,6.99926186,2400.0,2399.4,2.51094248]
[1726418910324,6.47465,2400.0,2399.4,2.51094248]
[1726418910521,3.0,2400.1,2399.5,3.918341]
[1726418910744,7.16658,2400.1,2399.5,4.16943525]
[1726418910942,7.16658,2400.1,2399.5,8.33686525]
[1726418911145,18.00252,2400.2,2399.6,6.59493]
[1726418912069,11.53639,2400.2,2399.7,3.918341]
[1726418912973,11.53639,2400.2,2399.6,8.08803453]
[1726418913115,11.53639,2400.2,2399.6,6.59484]
[1726418913744,11.53639,2400.2,2399.6,10.76209]
[1726418914329,11.53639,2400.2,2399.6,6.59484]
[1726418914524,11.53639,2400.2,2399.6,10.76209]
[1726418914830,11.53639,2400.2,2399.6,6.59484]
[1726418915068,4.16639,2400.2,2399.7,1.07642753]
[1726418915269,4.16639,2400.2,2399.7,5.24358753]
[1726418915766,4.16639,2400.2,2399.7,1.07642753]
[1726418916632,4.2052262,2400.4,2399.7,1.07642753]
[1726418916633,4.16621,2400.3,2399.7,9.16193853]
[1726418916931,0.0392062,2400.4,2399.8,5.74265785]
[1726418917270,0.0392062,2400.4,2399.9,2.4793]
[1726418917271,4.2052262,2400.4,2399.9,2.4793]
[1726418922051,4.2052262,2400.4,2399.9,6.64612]
[1726418922255,0.0392062,2400.4,2400.0,4.91458508]
[1726418922578,0.0392062,2400.4,2400.1,4.00166509]
[1726418922783,0.0392062,2400.4,2400.3,4.16614]
[1726418923443,0.0392062,2400.4,2400.3,8.084481]
[1726418923784,4.16528,2400.8,2400.3,2.4793]
[1726418923785,4.16548,2400.7,2400.3,2.4793]
[1726418924086,4.1544862,2400.8,2400.3,2.4793]
[1726418924245,4.1544862,2400.8,2400.3,3.5356951]
[1726418928058,4.1544862,2400.8,2400.3,7.7017951]
[1726418929297,4.1544862,2400.8,2400.3,11.6201361]
[1726418929757,8.3198862,2400.8,2400.3,3.5356951]
[1726418929958,4.1544862,2400.8,2400.3,3.5356951]
[1726418930162,4.1544862,2400.8,2400.3,2.4793]
[1726418930576,8.3198862,2400.8,2400.3,2.4793]
[1726418930878,4.1544862,2400.8,2400.3,2.4793]
[1726418932104,8.3198762,2400.8,2400.3,2.4793]
[1726418933800,4.16545,2400.7,2400.3,2.4793]
[1726418937762,8.3198962,2400.8,2400.3,3.5356841]
[1726418938062,8.3198962,2400.8,2400.3,7.4540251]
[1726418938263,4.16545,2400.7,2400.3,7.4540251]
[1726418940002,4.1544862,2400.8,2400.3,7.4540251]
[1726418940201,8.3198762,2400.8,2400.4,2.2591]
[1726418940763,4.16559,2400.7,2400.4,2.2591]
[1726418941204,4.1544862,2400.8,2400.4,2.2591]
[1726418941370,8.3199262,2400.8,2400.4,2.2591]
[1726418941913,4.16549,2400.7,2400.4,2.2591]
[1726418944406,4.16571,2400.6,2400.1,2.2591]
[1726418944611,4.16589,2400.5,2400.1,2.2591]
[1726418945170,4.16548,2400.7,2400.1,10.343801]
[1726418945547,4.16548,2400.7,2400.2,1.11769231]
[1726418945805,4.16548,2400.7,2400.2,1.0343801]
[1726418946911,4.16503,2401.0,2400.5,3.918341]
[1726418947119,8.33012,2401.0,2400.5,4.00164645]
[1726418947274,4.16503,2401.0,2400.5,4.00164645]
[1726418947473,4.16513,2400.9,2400.5,4.00164645]
[1726418947681,4.16513,2400.9,2400.6,0.81675165]
[1726418948312,4.16503,2401.0,2400.6,0.81675165]
[1726418951298,4.16503,2401.0,2400.7,2.3332]
[1726418954298,4.2039762,2401.1,2400.7,2.3332]
[1726418954498,0.0392062,2401.1,2400.8,0.91179915]
[1726418956224,4.2039762,2401.1,2400.8,0.91179915]
[1726418959408,0.0392062,2401.1,2400.8,2.71424902]
[1726418959592,0.0392062,2401.1,2400.9,0.5047449]
[1726418959793,0.0392062,2401.1,2400.8,2.71424902]
[1726418962117,0.0392062,2401.1,2401.0,1.80244987]
[1726418963624,0.0392062,2401.1,2400.8,1.80244987]
[1726418963942,0.0392062,2401.1,2400.8,1.8857448]
[1726418964363,0.0392062,2401.1,2400.8,5.96770987]
[1726418964530,0.0392062,2401.1,2400.9,1.33378456]
[1726418965760,0.0392062,2401.1,2400.7,2.3332]
[1726418965974,4.2040862,2401.1,2400.7,2.3332]
[1726418966330,0.0392062,2401.1,2400.7,2.3332]
[1726418966545,0.0392062,2401.1,2400.7,3.61753994]
[1726418966748,4.2040462,2401.1,2400.7,3.61753994]
[1726418968378,4.2040462,2401.1,2400.8,1.19076037]
[1726418968672,4.2040462,2401.1,2400.7,3.61753994]
[1726418968869,4.2040462,2401.1,2400.8,1.19074723]
[1726418969183,4.2040462,2401.1,2400.7,3.61753994]
[1726418969350,4.2040462,2401.1,2400.6,0.87159576]
[1726418969351,4.16494,2401.0,2400.6,0.87159576]
[1726418969533,4.16494,2401.0,2400.7,2.97690685]
[1726418969869,4.16494,2401.0,2400.6,0.87159576]
[1726418970075,4.16494,2401.0,2400.7,2.97691006]
[1726418970278,4.16494,2401.0,2400.6,0.87159576]
[1726418970479,4.16494,2401.0,2400.7,2.97689533]
[1726418970636,4.16494,2401.0,2400.8,1.19075629]
[1726418970969,4.16494,2401.0,2400.6,0.86159576]
[1726418971171,4.16494,2401.0,2400.7,2.97683083]
[1726418971335,4.16494,2401.0,2400.6,0.86159576]
[1726418971536,4.2039662,2401.1,2400.7,2.97681955]
[1726418971731,4.2039662,2401.1,2400.6,6.82960563]
[1726418971933,4.2039662,2401.1,2400.7,2.9768254]
[1726418972134,4.2039662,2401.1,2400.8,1.19073016]
[1726418972362,4.2039662,2401.1,2400.6,2.66404563]
[1726418972567,4.2039662,2401.1,2400.7,2.97679512]
[1726418972772,4.2039662,2401.1,2400.8,1.19071805]
[1726418973092,4.2039662,2401.1,2400.6,2.66404563]
[1726418973231,4.2039662,2401.1,2400.7,2.97676935]
[1726418973431,4.2039662,2401.1,2400.8,2.97676645]
[1726418973633,4.2039662,2401.1,2400.6,7.60770595]
[1726418973833,0.0392062,2401.1,2400.7,7.14214141]
[1726418974073,0.0392062,2401.1,2400.9,2.2578]
[1726418977006,0.0392062,2401.1,2400.7,6.42314]
[1726418977163,0.0392062,2401.1,2400.8,2.97646257]
[1726418977366,4.2039662,2401.1,2400.7,2.2578]
[1726418977560,4.2039662,2401.1,2400.8,2.97649521]
[1726418977810,4.2039662,2401.1,2400.7,2.2578]
[1726418978098,4.2039662,2401.1,2400.8,2.97648458]
[1726418978401,4.2039662,2401.1,2400.7,2.2578]
[1726418978707,4.2039662,2401.1,2400.8,2.97656606]
[1726418978996,4.2039662,2401.1,2400.7,2.2578]
[1726418979203,4.2039662,2401.1,2400.8,2.97655836]
[1726418979423,4.2039662,2401.1,2400.7,2.2578]
[1726418979561,4.2039662,2401.1,2400.8,2.97659663]
[1726418979900,4.2039662,2401.1,2400.7,2.2578]
[1726418980111,4.2039662,2401.1,2400.8,2.97661628]
[1726418980306,4.2039662,2401.1,2400.7,2.2578]
[1726418980596,4.2039662,2401.1,2400.8,2.9767536]
[1726418980909,4.2039662,2401.1,2400.7,3.13242173]
[1726418981198,4.2039662,2401.1,2400.8,2.97675125]
[1726418981399,4.2039662,2401.1,2400.7,3.13242173]
[1726418981598,4.2039662,2401.1,2400.8,2.97691153]
[1726418981904,4.2039662,2401.1,2400.7,3.13242173]
[1726418982124,4.16545,2400.7,2400.5,0.87462173]
[1726418982416,7.16515,2400.9,2400.6,1.19090513]
[1726418982566,4.16529,2400.8,2400.4,0.87462173]
[1726418982770,4.16529,2400.8,2400.5,2.9773172]
[1726418982964,4.16529,2400.8,2400.4,0.87462173]
[1726418982965,8.33067,2400.8,2400.4,0.87462173]
[1726418983215,8.33067,2400.8,2400.5,2.97733468]
[1726418983416,8.33067,2400.8,2400.4,0.87462173]
[1726418983654,8.33067,2400.8,2400.5,2.97747958]
[1726418983861,8.33067,2400.8,2400.4,0.87462173]
[1726418984064,4.16545,2400.7,2400.5,2.9774793]
[1726418984264,2.4797,2400.6,2400.3,0.87462173]
[1726418984437,2.4797,2400.6,2400.4,2.97763183]
[1726418984631,2.4797,2400.6,2400.5,1.19105273]
[1726418985116,6.64532,2400.6,2400.5,1.19105273]
[1726418985323,4.16545,2400.7,2400.5,1.19105678]
[1726418985551,4.16545,2400.7,2400.3,0.87462173]
[1726418985763,8.33104,2400.7,2400.4,2.97754285]
[1726418985937,8.33104,2400.7,2400.5,1.19101714]
[1726418986265,8.33104,2400.7,2400.3,0.87462173]
[1726418986266,4.16562,2400.6,2400.3,0.87462173]
[1726418986566,4.16562,2400.6,2400.4,2.9775519]
[1726418986720,4.16562,2400.6,2400.3,0.87462173]
[1726418986929,4.16562,2400.6,2400.4,2.9775168]
[1726418987132,4.16562,2400.6,2400.3,0.87462173]
[1726418987434,4.16562,2400.6,2400.4,2.97751796]
[1726418987682,4.16562,2400.6,2400.3,0.87462173]
[1726418987835,4.16562,2400.6,2400.4,2.97751662]
[1726418988034,4.16562,2400.6,2400.3,0.87462173]
[1726418988236,4.16562,2400.6,2400.4,2.97751873]
[1726418988451,4.16562,2400.6,2400.3,0.87462173]
[1726418988781,4.16562,2400.6,2400.4,2.97749492]
[1726418988952,4.16562,2400.6,2400.3,0.87462173]
[1726418989134,4.16562,2400.6,2400.4,2.97747281]
[1726418989335,4.16545,2400.7,2400.3,0.87462173]
[1726418989544,8.33102,2400.7,2400.4,2.97738746]
[1726418989850,8.33101,2400.7,2400.3,2.6770716]
[1726418990053,8.33101,2400.7,2400.4,2.97747098]
[1726418990356,8.33101,2400.7,2400.3,2.6770716]
[1726418990556,6.47634,2401.0,2400.5,1.80244987]
[1726418990798,4.16494,2401.0,2400.6,2.97743335]
[1726418990962,4.2041162,2401.1,2400.7,2.97739488]
[1726418991163,4.2041162,2401.1,2400.8,1.19096038]
[1726418991383,8.3690262,2401.1,2400.6,2.79661732]
[1726418991685,8.3689862,2401.1,2400.7,3.01107655]
[1726418991889,4.2040762,2401.1,2400.8,1.20443062]
[1726418992093,4.2040762,2401.1,2400.6,6.96212732]
[1726418992246,4.2040762,2401.1,2400.8,2.2531]
[1726418992450,0.0392062,2401.1,2400.8,2.2531]
[1726418992649,0.0392062,2401.1,2400.9,1.20448421]
[1726418992894,0.0392062,2401.1,2400.8,2.3363981]
[1726418993216,0.0392062,2401.1,2400.9,1.20447891]
[1726418993351,0.0392062,2401.1,2400.8,3.40244984]
[1726418993551,0.0392062,2401.1,2400.9,1.20449175]
[1726418993750,0.0392062,2401.1,2400.8,4.27707157]
[1726418994061,0.0392062,2401.1,2400.9,3.01114877]
[1726418994262,0.0392062,2401.1,2400.8,4.27707157]
[1726418994479,0.0392062,2401.1,2400.9,3.01114533]
[1726418994682,0.0392062,2401.1,2400.8,4.27707157]
[1726418995004,0.0392062,2401.1,2400.9,3.01109887]
[1726418995156,0.0392062,2401.1,2400.8,4.27707157]
[1726418995497,0.0392062,2401.1,2400.9,3.01109518]
[1726418995786,0.0392062,2401.1,2400.8,4.27707157]
[1726418995986,0.0392062,2401.1,2400.9,3.01108403]
[1726418996191,0.0392062,2401.1,2400.8,4.27707157]
[1726418996350,0.0392062,2401.1,2400.9,3.01107986]
[1726418996547,0.0392062,2401.1,2400.8,4.27707157]
[1726418996772,0.0392062,2401.1,2400.9,3.01110162]
[1726418996977,0.0392062,2401.1,2400.8,4.27707157]
[1726418997189,0.0392062,2401.1,2400.8,3.40244984]
[1726418997349,0.0392062,2401.1,2400.9,1.20444086]
[1726418997711,0.0392062,2401.1,2400.8,3.40244984]
[1726418997987,0.0392062,2401.1,2400.9,1.20444296]
[1726418998164,0.0392062,2401.1,2400.8,4.27707157]
[1726418998382,0.0392062,2401.1,2400.9,1.20444519]
[1726418998583,0.0392062,2401.1,2400.8,3.40244984]
[1726418998785,4.2039962,2401.1,2400.9,1.20444137]
[1726418998987,2.3905,2401.0,2400.7,0.87462173]
[1726418999303,2.3905,2401.0,2400.8,1.20447001]
[1726418999477,2.3905,2401.0,2400.7,0.87462173]
[1726418999676,2.3905,2401.0,2400.8,3.01124345]
[1726418999899,2.3905,2401.0,2400.7,0.87462173]
[1726419000221,2.3905,2401.0,2400.8,3.01124398]
[1726419000402,2.3905,2401.0,2400.7,0.87462173]
[1726419000601,6.55554,2401.0,2400.8,3.01124856]
[1726419000897,2.3905,2400.8,2400.3,0.87462173]
[1726419001081,4.16562,2400.6,2400.4,3.01145448]
[1726419001284,4.16562,2400.6,2400.2,0.87462173]
[1726419001511,4.16562,2400.6,2400.3,3.88612704]
[1726419001809,4.16562,2400.6,2400.4,1.20460212]
[1726419002021,4.16562,2400.6,2400.2,0.87462173]
[1726419002201,4.16562,2400.6,2400.3,3.0112057]
[1726419002401,4.16562,2400.6,2400.4,3.01104017]
[1726419002589,4.16562,2400.6,2400.3,0.87462173]
[1726419002774,4.16562,2400.6,2400.4,1.20432683]
[1726419003114,4.16562,2400.6,2400.3,0.87462173]
[1726419003274,4.16562,2400.6,2400.4,3.01080505]
[1726419003619,4.16562,2400.6,2400.2,0.87462173]
[1726419003809,4.16562,2400.6,2400.3,3.01057508]
[1726419004020,4.16562,2400.6,2400.4,1.20423003]
[1726419004188,4.16562,2400.6,2400.2,0.87462173]
[1726419004508,8.33134,2400.6,2400.3,3.01058958]
[1726419004709,4.16562,2400.6,2400.4,1.20423583]
[1726419004913,8.33136,2400.6,2400.2,0.87462173]
[1726419005222,8.33136,2400.6,2400.3,3.010322]
[1726419005510,4.16562,2400.6,2400.4,1.2041288]
[1726419005729,4.16607,2400.4,2400.2,0.87462173]
[1726419005954,4.16607,2400.4,2400.1,1.30739364]
[1726419005955,4.16607,2400.4,2400.1,0.87462173]
[1726419006122,4.16607,2400.4,2400.2,3.01025252]
[1726419006299,4.16607,2400.4,2400.1,0.87462173]
[1726419006505,4.16607,2400.4,2400.2,3.00980226]
[1726419006705,8.33147,2400.6,2400.1,3.12772173]
[1726419007021,4.16581,2400.5,2400.2,3.00979158]
[1726419007206,4.16581,2400.5,2400.1,3.12772173]
[1726419007405,4.16581,2400.5,2400.2,1.20391661]
[1726419007633,4.16581,2400.5,2400.1,3.12772173]
[1726419007851,4.16581,2400.5,2400.2,1.20376099]
[1726419008046,4.16581,2400.5,2400.1,2.2531]
[1726419008047,5.238012,2400.5,2400.1,2.2531]
[1726419008342,5.238012,2400.5,2400.2,1.20376643]
[1726419008646,5.238012,2400.5,2400.1,3.12772173]
[1726419008849,4.16581,2400.5,2400.2,3.00907906]
[1726419009009,4.16581,2400.5,2400.1,3.12772173]
[1726419009341,4.16581,2400.5,2400.2,3.00896032]
[1726419009563,4.16581,2400.5,2400.1,3.12772173]
[1726419009729,4.16581,2400.5,2400.2,1.20356372]
[1726419009916,4.16581,2400.5,2400.1,3.12772173]
[1726419010098,4.16581,2400.5,2400.2,3.00887601]
[1726419010297,4.16581,2400.5,2400.1,2.2531]
[1726419010542,4.16601,2400.4,2400.2,1.2034923]
[1726419010702,2.3242,2400.3,2400.0,0.87462173]
[1726419010902,2.3242,2400.3,2400.1,3.00877285]
[1726419011139,2.3242,2400.3,2400.0,0.87462173]
[1726419011439,2.3242,2400.3,2400.1,1.20032359]
[1726419011642,2.3242,2400.3,2399.9,0.87462173]
[1726419011813,2.3242,2400.3,2400.0,3.00052858]
[1726419012018,2.3242,2400.3,2400.1,1.20021143]
[1726419012213,2.3242,2400.3,2399.9,0.87462173]
[1726419012430,4.16601,2400.4,2400.0,3.00053073]
[1726419012649,4.16601,2400.4,2400.1,3.00053073]
[1726419012846,4.16601,2400.4,2400.0,0.87462173]
[1726419013004,4.16601,2400.4,2400.1,3.00011945]
[1726419013205,4.16601,2400.4,2400.0,0.87462173]
[1726419013452,4.16601,2400.4,2400.1,3.0001209]
[1726419013649,4.16601,2400.4,2400.0,0.87462173]
[1726419013965,4.16601,2400.4,2400.1,2.99993088]
[1726419014160,4.16601,2400.4,2400.0,6.11566349]
[1726419014376,4.16601,2400.4,2400.1,2.99988711]
[1726419014590,4.16601,2400.4,2400.0,5.1361716]
[1726419014900,4.16601,2400.4,2400.1,2.9997825]
[1726419015090,4.16601,2400.4,2400.0,5.1361716]
[1726419015410,4.16601,2400.4,2400.1,1.1999318]
[1726419015696,4.16601,2400.4,2400.0,4.26154987]
[1726419015896,4.16601,2400.4,2400.1,1.19987496]
[1726419016106,4.16601,2400.4,2400.0,4.26154987]
[1726419016404,4.16601,2400.4,2400.1,1.19987136]
[1726419016610,4.16601,2400.4,2400.0,4.26154987]
[1726419016766,4.16601,2400.4,2400.1,1.19982171]
[1726419016965,4.16601,2400.4,2399.9,2.51824541]
[1726419017168,4.16601,2400.4,2400.0,2.99957851]
[1726419017370,4.16601,2400.4,2400.1,1.1998314]
[1726419017683,4.16601,2400.4,2400.0,2.10003862]
[1726419017883,4.16601,2400.4,2400.1,2.99936678]
[1726419018094,4.16601,2400.4,2399.9,6.68504541]
[1726419018323,4.16601,2400.4,2400.0,2.99937862]
[1726419018627,4.16601,2400.4,2400.1,1.19975145]
[1726419018782,4.16601,2400.4,2399.9,6.68504541]
[1726419018983,4.16601,2400.4,2400.0,2.99933921]
[1726419019187,4.16601,2400.4,2400.1,1.19973568]
[1726419019382,4.16601,2400.4,2399.9,6.68504541]
[1726419019574,4.16601,2400.4,2400.0,5.45843065]
[1726419019776,4.16601,2400.4,2400.1,1.19973226]
[1726419019973,4.16601,2400.4,2400.0,2.4591]
[1726419020177,4.16601,2400.4,2400.1,1.19975394]
[1726419020487,4.16601,2400.4,2400.0,2.4591]
[1726419020670,4.16601,2400.4,2400.1,1.19977292]
[1726419020872,4.16601,2400.4,2400.0,2.4591]
[1726419021302,4.16601,2400.4,2400.1,1.19977399]
[1726419021510,4.16601,2400.4,2400.0,2.4591]
[1726419021810,4.16601,2400.4,2400.1,1.19981984]
[1726419022019,4.16601,2400.4,2400.0,2.4591]
[1726419022214,4.16601,2400.4,2400.1,1.19982114]
[1726419022373,4.16601,2400.4,2400.0,2.4591]
[1726419022577,4.16601,2400.4,2400.1,1.19981364]
[1726419022796,4.16601,2400.4,2400.0,2.4591]
[1726419023076,4.16601,2400.4,2400.1,1.19988376]
[1726419023408,4.16601,2400.4,2400.0,2.4591]
[1726419023605,4.16601,2400.4,2400.1,1.19994038]
[1726419023798,4.16601,2400.4,2400.0,2.4591]
[1726419023999,4.16601,2400.4,2400.1,1.1999447]
[1726419024196,6.62022,2400.6,2400.0,3.33372173]
[1726419024197,10.78598,2400.6,2400.0,3.33372173]
[1726419024404,10.78597,2400.6,2400.1,4.09900724]
[1726419024633,10.78595,2400.6,2400.2,1.20173908]
[1726419024794,4.1658,2400.5,2400.0,7.50036173]
[1726419024993,4.1658,2400.5,2400.1,3.00434911]
[1726419025193,4.1658,2400.5,2400.0,9.15238141]
[1726419025434,4.1658,2400.5,2400.1,3.00456663]
[1726419025589,4.1658,2400.5,2400.0,9.15238141]
[1726419025794,4.1658,2400.5,2400.1,4.64752591]
[1726419026027,10.78595,2400.6,2400.1,1.64290249]
[1726419026231,6.62022,2400.6,2400.2,1.20184526]
[1726419026413,10.78595,2400.6,2400.0,7.50036173]
[1726419026614,4.16597,2400.4,2400.1,3.00465505]
[1726419026839,2.4545,2400.3,2400.0,0.87462173]
[1726419027150,6.62066,2400.3,2400.1,3.00496301]
[1726419027438,7.282707,2400.3,2399.9,0.87462173]
[1726419027612,4.16633,2400.2,2400.0,3.0052196]
[1726419027814,4.16633,2400.2,2400.1,1.20208784]
[1726419028439,4.16633,2400.2,2399.9,0.87462173]
[1726419028736,4.16633,2400.2,2400.0,3.00513555]
[1726419028935,4.16633,2400.2,2399.9,0.87462173]
[1726419029137,6.62067,2400.3,2400.0,3.0051537]
[1726419029341,6.62067,2400.3,2400.1,1.20206148]
[1726419029495,4.16617,2400.3,2399.9,4.43366142]
[1726419029695,4.16617,2400.3,2400.0,3.00503316]
[1726419029897,4.16617,2400.3,2399.9,0.87462173]
[1726419029898,4.16617,2400.3,2400.1,1.20201326]
[1726419030129,4.16617,2400.3,2399.9,0.87462173]
[1726419030332,4.16617,2400.3,2400.0,3.00503803]
[1726419030544,4.16617,2400.3,2400.1,1.20201521]
[1726419030850,4.16617,2400.3,2399.9,0.87462173]
[1726419031054,4.16617,2400.3,2400.0,3.00495328]
[1726419031197,4.16617,2400.3,2400.1,1.20198131]
[1726419031397,4.16617,2400.3,2399.9,0.87462173]
[1726419031626,4.16617,2400.3,2400.0,3.03543853]
[1726419031810,4.16617,2400.3,2400.1,1.21417541]
[1726419032023,0.08280329,2400.2,2399.9,0.87462173]
[1726419032228,0.08280329,2400.2,2400.0,3.03547236]
[1726419032400,4.16617,2400.3,2400.1,1.2141896]
[1726419032595,4.16617,2400.3,2399.9,0.87462173]
[1726419032954,0.08332781,2400.2,2400.0,3.03535523]
[1726419033130,4.16617,2400.3,2400.1,1.21414209]
[1726419033328,0.08328197,2400.1,2399.9,0.87462173]
[1726419033514,4.16617,2400.3,2399.9,0.87462173]
[1726419033848,4.16617,2400.3,2400.0,3.03528065]
[1726419034005,4.16632,2400.2,2399.8,0.87462173]
[1726419034207,4.16632,2400.2,2399.9,3.03535311]
[1726419034425,4.16632,2400.2,2400.0,1.21414124]
[1726419034608,4.16632,2400.2,2399.8,2.0482219]
[1726419034817,4.16632,2400.2,2399.9,3.03514492]
[1726419035050,4.16632,2400.2,2400.0,1.21405797]
[1726419035247,4.16632,2400.2,2399.8,2.0482219]
[1726419035405,4.16632,2400.2,2399.9,3.03511933]
[1726419035604,4.16632,2400.2,2400.0,1.21404773]
[1726419035804,4.16632,2400.2,2399.8,2.0482219]
[1726419036105,4.16632,2400.2,2399.9,3.03502413]
[1726419036416,4.16632,2400.2,2400.0,3.03501421]
[1726419036628,4.16632,2400.2,2399.9,2.04044527]
[1726419036815,4.16632,2400.2,2400.0,1.2139661]
[1726419037155,4.16632,2400.2,2399.8,2.0482219]
[1726419037448,4.16632,2400.2,2399.9,3.03495605]
[1726419037752,4.16632,2400.2,2400.0,1.21398242]
[1726419038043,4.16632,2400.2,2399.8,2.0482219]
[1726419038341,4.16632,2400.2,2399.9,3.03518385]
[1726419038507,4.16632,2400.2,2400.0,1.21407354]
[1726419038703,6.51099,2400.0,2399.8,0.87462173]
[1726419039020,6.51099,2400.0,2399.9,3.03524538]
[1726419039948,2.3443,2400.0,2399.9,3.03524538]
[1726419041208,4.16652,2400.1,2399.9,3.03524538]
[1726419041431,4.16652,2400.1,2400.0,1.21409815]
[1726419042119,6.51062,2400.2,2400.0,1.21409815]
[1726419042438,10.67704,2400.2,2399.9,0.87462173]
[1726419042640,10.67704,2400.2,2400.0,3.03753905]
[1726419042843,10.67704,2400.2,2399.9,0.87462173]
[1726419043006,10.67704,2400.2,2400.0,3.03754055]
[1726419043209,10.67704,2400.2,2399.9,0.87462173]
[1726419043463,10.67704,2400.2,2400.0,3.03753982]
[1726419043633,6.51062,2400.2,2400.1,1.21501593]
[1726419044719,6.59388078,2400.2,2400.1,3.03876134]
[1726419048306,6.59388078,2400.2,2400.1,3.04086018]
[1726419048513,6.59388078,2400.2,2400.1,3.91548191]
[1726419048949,6.59388078,2400.2,2400.1,3.04086018]
[1726419049454,6.59388078,2400.2,2400.1,3.91548191]
[1726419050146,4.24958078,2400.2,2400.1,3.91548191]
[1726419050318,0.08326078,2400.2,2400.1,3.91548191]
[1726419050677,8.33243,2400.3,2400.1,3.91548191]
[1726419050811,8.33243,2400.3,2400.1,0.87462173]
[1726419050812,0.08326078,2400.2,2400.1,0.87462173]
[1726419051132,2.4338,2400.4,2400.1,3.0412567]
[1726419051337,8.33181,2400.5,2400.1,3.0412567]
[1726419051338,4.16589,2400.5,2400.2,3.91705219]
[1726419051518,4.16589,2400.5,2400.3,3.91705219]
[1726419051707,2.4338,2400.6,2400.4,3.91705219]
[1726419051912,6.59945,2400.6,2400.5,3.0412567]
[1726419052354,6.59945,2400.6,2400.5,1.21650268]
[1726419052557,4.16565,2400.6,2400.5,3.04115626]
[1726419053324,4.16555,2400.7,2400.5,3.04115626]
[1726419053562,4.16555,2400.7,2400.4,0.87579549]
[1726419053736,8.33113,2400.7,2400.5,3.04089168]
[1726419054062,8.33113,2400.7,2400.4,0.87579549]
[1726419054365,8.33113,2400.7,2400.5,3.04084843]
[1726419054536,8.33113,2400.7,2400.4,0.87579549]
[1726419054742,8.33113,2400.7,2400.5,3.04065585]
[1726419054921,8.33113,2400.7,2400.4,0.87579549]
[1726419055125,8.33113,2400.7,2400.5,3.04068599]
[1726419055363,9.5752,2400.8,2400.4,0.87579549]
[1726419055574,9.5752,2400.8,2400.5,3.04046483]
[1726419055877,9.5752,2400.8,2400.4,0.87579549]
[1726419056031,3.0,2400.8,2400.5,3.04047377]
[1726419056237,3.0,2400.8,2400.6,3.04047377]
[1726419056582,3.0,2400.8,2400.5,0.87579549]
[1726419056732,3.0,2400.8,2400.6,3.03990968]
[1726419057073,3.0,2400.8,2400.7,1.21596643]
[1726419057373,3.0,2400.8,2400.5,0.87579549]
[1726419057673,3.0,2400.8,2400.6,1.21575105]
[1726419057855,4.16545,2400.7,2400.4,0.87579549]
[1726419058030,4.16545,2400.7,2400.5,3.03945045]
[1726419058233,2.4098,2400.6,2400.4,0.87579549]
[1726419058537,2.4098,2400.6,2400.5,3.03924683]
[1726419059679,2.4098,2400.6,2400.5,3.03914978]
[1726419059880,2.4098,2400.6,2400.5,1.21569873]
[1726419059881,2.49061561,2400.6,2400.5,1.21569873]
[1726419060054,2.49061561,2400.6,2400.5,3.03913951]
[1726419060832,2.49061561,2400.6,2400.5,3.03911077]